bitfinex/quotes_BTCUSD_20250711
["timestamp","ask_amount","ask_price","bid_price","bid_amount"]
[1752192002202,0.00047745,115960.0,115950.0,0.05337376]
[1752192002616,0.00056653,115970.0,115960.0,0.0319]
[1752192002820,0.00093306,115970.0,115960.0,0.05012376]
[1752192002995,0.00093306,115970.0,115960.0,0.05305376]
[1752192005294,0.00093306,115970.0,115960.0,0.05605376]
[1752192005506,0.00093306,115970.0,115960.0,0.14148369]
[1752192005745,0.00093306,115970.0,115960.0,0.05605376]
[1752192005956,0.00158306,115970.0,115960.0,0.02405376]
[1752192006168,0.01020538,115970.0,115960.0,0.02112376]
[1752192006371,0.09563531,115970.0,115960.0,0.01912376]
[1752192006674,0.12878047,115970.0,115960.0,0.01912376]
[1752192006874,0.15351338,115970.0,115960.0,0.02012376]
[1752192007268,0.15351331,115970.0,115960.0,0.02012376]
[1752192007481,0.14489047,115970.0,115960.0,0.01912376]
[1752192007676,0.16213615,115970.0,115960.0,0.01912376]
[1752192007925,0.14489047,115970.0,115960.0,0.01912376]
[1752192008337,0.15351324,115970.0,115960.0,0.01912376]
[1752192008488,0.14489047,115970.0,115960.0,0.01912376]
[1752192008681,0.13585778,115970.0,115960.0,0.01912376]
[1752192009086,0.00093306,115970.0,115960.0,0.05535376]
[1752192010066,0.00158306,115970.0,115960.0,0.01612376]
[1752192010250,0.08701299,115970.0,115960.0,0.01812376]
[1752192010669,0.10425785,115970.0,115960.0,0.002]
[1752192010875,0.08701299,115970.0,115960.0,0.01812368]
[1752192011006,0.1042577,115970.0,115960.0,0.01812368]
[1752192011202,0.11288024,115970.0,115960.0,0.01812368]
[1752192011411,0.09563531,115970.0,115960.0,0.01812368]
[1752192011611,0.09563531,115970.0,115960.0,0.01612368]
[1752192012466,0.08701299,115970.0,115960.0,0.01612368]
[1752192012869,0.10425771,115970.0,115960.0,0.01612368]
[1752192013068,0.10425763,115970.0,115960.0,0.01612368]
[1752192013679,0.09563524,115970.0,115960.0,0.01612368]
[1752192014140,0.10425756,115970.0,115960.0,0.01612368]
[1752192015239,0.09563524,115970.0,115960.0,0.01612368]
[1752192016596,0.09563524,115970.0,115960.0,0.05245368]
[1752192016597,0.00093306,115970.0,115960.0,0.05245368]
[1752192018673,0.00093306,115970.0,115960.0,0.22492694]
[1752192019060,0.00093306,115970.0,115960.0,0.05245368]
[1752192019468,0.00093306,115970.0,115960.0,0.05461796]
[1752192019684,0.00093306,115970.0,115960.0,0.06108571]
[1752192019881,0.00093306,115970.0,115960.0,0.05461808]
[1752192020080,0.00093306,115970.0,115960.0,0.06524174]
[1752192020310,0.00093306,115970.0,115960.0,0.07386532]
[1752192020468,0.00093306,115970.0,115960.0,0.08048883]
[1752192020668,0.00093306,115970.0,115960.0,0.25296202]
[1752192020889,0.00093306,115970.0,115960.0,0.25080611]
[1752192021314,0.00093306,115970.0,115960.0,0.24218267]
[1752192021488,0.00093306,115970.0,115960.0,0.25280618]
[1752192021882,0.00093306,115970.0,115960.0,0.26142962]
[1752192022078,0.00093306,115970.0,115960.0,0.26142954]
[1752192022317,0.00093306,115970.0,115960.0,0.26142962]
[1752192022494,0.00093306,115970.0,115960.0,0.25280618]
[1752192022837,0.00093306,115970.0,115960.0,0.06308575]
[1752192022995,0.00093306,115970.0,115960.0,0.24633836]
[1752192023206,0.00093306,115970.0,115960.0,0.25280574]
[1752192023404,0.00093306,115970.0,115960.0,0.24418245]
[1752192023804,0.00093306,115970.0,115960.0,0.25280581]
[1752192024079,0.00093306,115970.0,115960.0,0.27005216]
[1752192024501,0.00093306,115970.0,115960.0,0.48992209]
[1752192024730,0.05027884,115980.0,115970.0,0.19832624]
[1752192024948,0.05060751,115980.0,115970.0,0.24931841]
[1752192025156,0.05060751,115980.0,115970.0,0.25230841]
[1752192026254,0.05032867,115980.0,115970.0,0.25230841]
[1752192026538,0.03685435,115980.0,115970.0,0.33773834]
[1752192026806,0.03685435,115980.0,115970.0,0.34746317]
[1752192027793,0.03685435,115980.0,115970.0,0.35046317]
[1752192028958,0.03685435,115980.0,115970.0,0.37623474]
[1752192031827,0.03685435,115980.0,115970.0,0.45332532]
[1752192032033,0.03685435,115980.0,115970.0,0.37623474]
[1752192032876,0.03685435,115980.0,115970.0,0.44077559]
[1752192034515,0.03685435,115980.0,115970.0,0.57549559]
[1752192035252,0.03685435,115980.0,115970.0,0.35046317]
[1752192035432,0.03685435,115980.0,115970.0,0.48518317]
[1752192035570,0.03685435,115980.0,115970.0,0.45932617]
[1752192036234,0.03685435,115980.0,115970.0,0.45070378]
[1752192036435,0.03685435,115980.0,115970.0,0.45932625]
[1752192036667,0.03685435,115980.0,115970.0,0.36615385]
[1752192036794,0.03685435,115980.0,115970.0,0.35753123]
[1752192037007,0.03685435,115980.0,115970.0,0.20637654]
[1752192037230,0.03685435,115980.0,115970.0,0.34193654]
[1752192037449,0.03685435,115980.0,115970.0,0.33339392]
[1752192037766,0.03685435,115980.0,115970.0,0.35721654]
[1752192037974,0.03685435,115980.0,115970.0,0.34859392]
[1752192038107,0.03685435,115980.0,115970.0,0.33997123]
[1752192038452,0.03685435,115980.0,115970.0,0.348554]
[1752192038664,0.03685435,115980.0,115970.0,0.35717669]
[1752192038869,0.03685435,115980.0,115970.0,0.35917669]
[1752192039309,0.03685435,115980.0,115970.0,0.37507669]
[1752192039486,0.02338435,115980.0,115970.0,0.38369931]
[1752192039638,0.02338435,115980.0,115970.0,0.01005]
[1752192039863,0.02338435,115980.0,115970.0,0.01867291]
[1752192040063,0.02338435,115980.0,115970.0,0.01005]
[1752192040288,0.02338435,115980.0,115970.0,0.01020999]
[1752192040486,0.02403435,115980.0,115970.0,0.01020999]
[1752192040687,0.02403435,115980.0,115970.0,0.0188329]
[1752192040855,0.02403435,115980.0,115970.0,0.19991398]
[1752192041180,0.02338435,115980.0,115970.0,0.19991413]
[1752192041356,0.02338435,115980.0,115970.0,0.19691413]
[1752192041559,0.02338435,115980.0,115970.0,0.2055369]
[1752192041797,0.02338435,115980.0,115970.0,0.2045369]
[1752192042036,0.02338435,115980.0,115970.0,0.23503682]
[1752192042192,0.02338435,115980.0,115970.0,0.23603682]
[1752192042719,0.02338435,115980.0,115970.0,0.2360369]
[1752192042864,0.02338435,115980.0,115970.0,0.24465952]
[1752192043073,0.02338435,115980.0,115970.0,0.2360369]
[1752192043270,0.02338435,115980.0,115970.0,0.38021959]
[1752192043478,0.02338435,115980.0,115970.0,0.38884221]
[1752192043701,0.02338435,115980.0,115970.0,0.38884184]
[1752192043903,0.02338435,115980.0,115970.0,0.38884147]
[1752192044137,0.02338435,115980.0,115970.0,0.38884109]
[1752192044757,0.02338435,115980.0,115970.0,0.3715966]
[1752192045189,0.02338435,115980.0,115970.0,0.38021914]
[1752192045315,0.02338435,115980.0,115970.0,0.72884161]
[1752192045515,0.02338435,115980.0,115970.0,0.70297398]
[1752192046569,0.02338435,115980.0,115970.0,0.71159675]
[1752192046774,0.02338435,115980.0,115970.0,0.7115969]
[1752192046983,0.02338435,115980.0,115970.0,0.72021959]
[1752192047614,0.02338435,115980.0,115970.0,0.72884221]
[1752192047755,0.02338435,115980.0,115970.0,0.72021959]
[1752192047968,0.02338435,115980.0,115970.0,0.7115969]
[1752192048170,0.02338435,115980.0,115970.0,0.72021959]
[1752192048372,0.02338435,115980.0,115970.0,0.72884221]
[1752192048883,0.02338435,115980.0,115970.0,0.56741399]
[1752192049082,0.02338435,115980.0,115970.0,0.71135668]
[1752192049516,0.02338435,115980.0,115970.0,0.7199793]
[1752192050490,0.00991435,115980.0,115970.0,0.72871162]
[1752192050711,0.00991435,115980.0,115970.0,0.84007554]
[1752192050911,0.00991435,115980.0,115970.0,0.86346054]
[1752192051266,0.00991435,115980.0,115970.0,0.64271061]
[1752192051470,0.00991435,115980.0,115970.0,0.72856169]
[1752192051902,0.00991435,115980.0,115970.0,0.80027201]
[1752192052476,0.00991435,115980.0,115970.0,0.73847669]
[1752192054979,0.00991435,115980.0,115970.0,0.60319669]
[1752192055180,0.00991435,115980.0,115970.0,0.73843669]
[1752192055384,0.00991435,115980.0,115970.0,0.73839669]
[1752192055620,0.00991435,115980.0,115970.0,0.7297743]
[1752192055751,0.00991435,115980.0,115970.0,0.73839632]
[1752192055955,0.00991435,115980.0,115970.0,0.73839647]
[1752192056612,0.00991435,115980.0,115970.0,0.57732884]
[1752192056774,0.00991435,115980.0,115970.0,0.70390622]
[1752192056955,0.00991435,115980.0,115970.0,0.71252899]
[1752192057356,0.00991435,115980.0,115970.0,0.72115161]
[1752192057802,0.00991435,115980.0,115970.0,0.71252899]
[1752192058002,0.00991435,115980.0,115970.0,0.72115168]
[1752192058204,0.00991435,115980.0,115970.0,0.38762499]
[1752192058412,0.01056435,115980.0,115970.0,0.5009479]
[1752192058799,0.01056435,115980.0,115970.0,0.51819351]
[1752192059219,0.01056435,115980.0,115970.0,0.35712499]
[1752192059422,0.01056435,115980.0,115970.0,0.4910329]
[1752192060076,0.00991435,115980.0,115970.0,0.50827851]
[1752192060354,0.00991435,115980.0,115970.0,0.49965574]
[1752192060566,0.00108267,115980.0,115970.0,0.34720999]
[1752192060770,0.04075432,115980.0,115970.0,0.00215999]
[1752192060990,0.1179726,115980.0,115970.0,0.00215999]
[1752192061741,0.1179726,115980.0,115970.0,0.00115999]
[1752192062151,0.1179726,115980.0,115970.0,0.00015999]
[1752192062621,0.1185626,115980.0,115970.0,0.00015999]
[1752192068680,0.0881626,115980.0,115970.0,0.00015999]
[1752192070612,0.00208267,115980.0,115970.0,0.22160694]
[1752192070826,0.00351824,115990.0,115980.0,0.21396554]
[1752192071034,0.0051913,115990.0,115980.0,0.0436021]
[1752192071241,0.0051913,115990.0,115980.0,0.23651951]
[1752192071455,0.0051913,115990.0,115980.0,0.03821]
[1752192072084,0.0051913,115990.0,115980.0,0.03921]
[1752192072552,0.0051913,115990.0,115980.0,0.11652841]
[1752192072740,0.0051913,115990.0,115980.0,0.11652603]
[1752192073201,0.0051913,115990.0,115980.0,0.03921]
[1752192074094,0.0051913,115990.0,115980.0,0.04021]
[1752192074310,0.0051913,115990.0,115980.0,0.04883202]
[1752192074539,0.0051913,115990.0,115980.0,0.22989741]
[1752192074954,0.0051913,115990.0,115980.0,0.22127554]
[1752192075410,0.0051913,115990.0,115980.0,0.04021]
[1752192075628,0.0051913,115990.0,115980.0,0.0488321]
[1752192075847,0.0051913,115990.0,115980.0,0.23205311]
[1752192076082,0.0051913,115990.0,115980.0,0.22989757]
[1752192076295,0.0051913,115990.0,115980.0,0.04021]
[1752192076774,0.0051913,115990.0,115980.0,0.05745427]
[1752192076987,0.0051913,115990.0,115980.0,0.17545]
[1752192079268,0.0058413,115990.0,115980.0,0.14255]
[1752192079482,0.0058413,115990.0,115980.0,0.00731]
[1752192079720,0.0058413,115990.0,115980.0,0.14255]
[1752192079948,0.0058413,115990.0,115980.0,0.00731]
[1752192080168,0.0058413,115990.0,115980.0,0.14047]
[1752192081053,0.0058413,115990.0,115980.0,0.14243]
[1752192081270,0.0058413,115990.0,115980.0,0.15853]
[1752192082629,0.00010709,115990.0,115980.0,0.15853]
[1752192083350,0.00010709,115990.0,115980.0,0.17403]
[1752192084448,0.00010709,115990.0,115980.0,0.03879]
[1752192085372,0.13442876,115990.0,115980.0,0.002]
[1752192085576,0.12621778,115990.0,115980.0,0.342]
[1752192085789,0.13483861,115990.0,115980.0,0.342]
[1752192086216,0.12621778,115990.0,115980.0,0.341]
[1752192086419,0.11718702,115990.0,115980.0,0.341]
[1752192086638,0.11718702,115990.0,115980.0,0.001]
[1752192086842,0.11718702,115990.0,115970.0,0.00015999]
[1752192087260,0.11718702,115990.0,115970.0,0.00308999]
[1752192087461,0.08618702,115990.0,115970.0,0.03488999]
[1752192088182,0.08618702,115990.0,115970.0,0.03588999]
[1752192088391,0.08618702,115990.0,115970.0,0.03688999]
[1752192089027,0.08618702,115990.0,115970.0,0.05300537]
[1752192090081,0.10238702,115990.0,115970.0,0.05300537]
[1752192090693,0.10238702,115990.0,115970.0,0.05300354]
[1752192091745,0.30896818,115990.0,115970.0,0.01827354]
[1752192092024,0.58600878,115980.0,115970.0,0.01827354]
[1752192092147,0.58665878,115980.0,115970.0,0.01827354]
[1752192092797,0.58676587,115980.0,115970.0,0.01727354]
[1752192093039,0.58676587,115980.0,115970.0,0.01627354]
[1752192093453,0.58876587,115980.0,115970.0,0.01627354]
[1752192093647,0.59738789,115980.0,115970.0,0.01627384]
[1752192095096,0.59938789,115980.0,115970.0,0.01627384]
[1752192095304,0.59076587,115980.0,115970.0,0.01627384]
[1752192096319,0.4097004,115980.0,115970.0,0.01627384]
[1752192097137,0.41832227,115980.0,115970.0,0.01627384]
[1752192097300,0.4183222,115980.0,115970.0,0.01627384]
[1752192098381,0.4097004,115980.0,115970.0,0.01627384]
[1752192098790,0.41832227,115980.0,115970.0,0.01627384]
[1752192099199,0.4097004,115980.0,115970.0,0.01627384]
[1752192099379,0.41832227,115980.0,115970.0,0.01626298]
[1752192099966,0.42694415,115980.0,115970.0,0.01626298]
[1752192100397,0.60800977,115980.0,115970.0,0.01626298]
[1752192100801,0.62255062,115980.0,115970.0,0.01626298]
[1752192100979,0.61392897,115980.0,115970.0,0.01626298]
[1752192101183,0.59668544,115980.0,115970.0,0.01626298]
[1752192102845,0.59368094,115980.0,115970.0,0.01626298]
[1752192103290,0.59368094,115980.0,115970.0,0.01626078]
[1752192103499,0.4208266,115980.0,115970.0,0.01626078]
[1752192103883,0.4294484,115980.0,115970.0,0.01626078]
[1752192104297,0.2854266,115980.0,115970.0,0.01626078]
[1752192104485,0.14204487,115980.0,115970.0,0.01626078]
[1752192104690,0.22125252,115980.0,115970.0,0.02115078]
[1752192104860,0.22125252,115980.0,115970.0,0.05205078]
[1752192105667,0.22121252,115980.0,115970.0,0.05205078]
[1752192106291,0.22121252,115980.0,115970.0,0.06076046]
[1752192108066,0.22186252,115980.0,115970.0,0.06076046]
[1752192108962,0.23048417,115980.0,115970.0,0.03459078]
[1752192109167,0.2304841,115980.0,115970.0,0.01919078]
[1752192109486,0.22186252,115980.0,115970.0,0.01919078]
[1752192109896,0.23048402,115980.0,115970.0,0.01919078]
[1752192110425,0.22186252,115980.0,115970.0,0.01919078]
[1752192111078,0.41154927,115980.0,115970.0,0.01626078]
[1752192111196,0.2304841,115980.0,115970.0,0.01626078]
[1752192111633,0.22186252,115980.0,115970.0,0.01626078]
[1752192112473,0.22186252,115980.0,115970.0,0.01951078]
[1752192113173,0.22186252,115980.0,115970.0,0.00340999]
[1752192113374,0.22186252,115980.0,115970.0,0.01952617]
[1752192113808,0.22186252,115980.0,115970.0,0.40595222]
[1752192114017,0.2304841,115980.0,115970.0,0.35952617]
[1752192114430,0.22186252,115980.0,115970.0,0.35952617]
[1752192114900,0.2391059,115980.0,115970.0,0.01627617]
[1752192115164,0.2304841,115980.0,115970.0,0.01627617]
[1752192115630,0.23910575,115980.0,115970.0,0.01627617]
[1752192115841,0.24772755,115980.0,115970.0,0.01627617]
[1752192116024,0.44333387,115980.0,115970.0,0.01627617]
[1752192116466,0.43471185,115980.0,115970.0,0.01627617]
[1752192116662,0.44333365,115980.0,115970.0,0.01627617]
[1752192117098,0.43471185,115980.0,115970.0,0.01627617]
[1752192117911,0.42609012,115980.0,115970.0,0.01627617]
[1752192118322,0.43471192,115980.0,115970.0,0.01627617]
[1752192118768,0.42609012,115980.0,115970.0,0.01627617]
[1752192119164,0.43471192,115980.0,115970.0,0.01627617]
[1752192119507,0.42609012,115980.0,115970.0,0.01627617]
[1752192119717,0.43471192,115980.0,115970.0,0.01629162]
[1752192120349,0.43471185,115980.0,115970.0,0.01629162]
[1752192120725,0.24502495,115980.0,115970.0,0.01629162]
[1752192121146,0.25364668,115980.0,115970.0,0.01629162]
[1752192121928,0.44333409,115980.0,115970.0,0.01629162]
[1752192122165,0.43471207,115980.0,115970.0,0.01629162]
[1752192122900,0.46592207,115980.0,115970.0,0.01629162]
[1752192123083,0.43471207,115980.0,115970.0,0.01629162]
[1752192123747,0.4260902,115980.0,115970.0,0.01629162]
[1752192123950,0.43471207,115980.0,115970.0,0.01629162]
[1752192124372,0.48316619,115980.0,115970.0,0.01629162]
[1752192124580,0.46862527,115980.0,115970.0,0.01629162]
[1752192124784,0.46821527,115980.0,115970.0,0.01629162]
[1752192125199,0.46765612,115980.0,115970.0,0.01629162]
[1752192125622,0.48306612,115980.0,115970.0,0.01629162]
[1752192125797,0.47403402,115980.0,115970.0,0.01629162]
[1752192126052,0.44333402,115980.0,115970.0,0.01629162]
[1752192126465,0.45195612,115980.0,115970.0,0.01629162]
[1752192126848,0.44333402,115980.0,115970.0,0.01629162]
[1752192127428,0.44333446,115980.0,115970.0,0.01629162]
[1752192127857,0.45195656,115980.0,115970.0,0.01629162]
[1752192128169,0.44333446,115980.0,115970.0,0.01629162]
[1752192128865,0.45195663,115980.0,115970.0,0.01629162]
[1752192129269,0.44333446,115980.0,115970.0,0.01629162]
[1752192130441,0.43471244,115980.0,115970.0,0.01629162]
[1752192130643,0.42609049,115980.0,115970.0,0.01629162]
[1752192131216,0.23640337,115980.0,115970.0,0.01629162]
[1752192131429,0.08718252,115980.0,115970.0,0.05329162]
[1752192131678,0.22065252,115980.0,115970.0,0.05329162]
[1752192132544,0.22097252,115980.0,115970.0,0.05329162]
[1752192133000,0.22162252,115980.0,115970.0,0.05329162]
[1752192133197,0.23024402,115980.0,115970.0,0.05329162]
[1752192133408,0.22162252,115980.0,115970.0,0.05329162]
[1752192134004,0.22162252,115980.0,115970.0,0.09974616]
[1752192134231,0.22097252,115980.0,115970.0,0.09974616]
[1752192134422,0.22097252,115980.0,115970.0,0.05329162]
[1752192134834,0.08653252,115980.0,115970.0,0.05329162]
[1752192135037,0.22105252,115980.0,115970.0,0.05329162]
[1752192136580,0.22105252,115980.0,115970.0,0.037]
[1752192139802,0.08653252,115980.0,115970.0,0.037]
[1752192140215,0.22085252,115980.0,115970.0,0.037]
[1752192143000,0.2387456,115980.0,115970.0,0.037]
[1752192144318,0.23012402,115980.0,115970.0,0.037]
[1752192144730,0.22150252,115980.0,115970.0,0.037]
[1752192144947,0.23012402,115980.0,115970.0,0.036]
[1752192145161,0.22150252,115980.0,115970.0,0.036]
[1752192145607,0.22085252,115980.0,115970.0,0.036]
[1752192146068,0.08653252,115980.0,115970.0,0.036]
[1752192146281,0.22077252,115980.0,115970.0,0.036]
[1752192152383,0.08653252,115980.0,115970.0,0.036]
[1752192152786,0.22923402,115980.0,115970.0,0.036]
[1752192152929,0.22988402,115980.0,115970.0,0.036]
[1752192153268,0.41957085,115980.0,115970.0,0.036]
[1752192153471,0.22988402,115980.0,115970.0,0.036]
[1752192153941,0.22061252,115980.0,115970.0,0.036]
[1752192155124,0.22923402,115980.0,115970.0,0.036]
[1752192155658,0.22061252,115980.0,115970.0,0.036]
[1752192157235,0.22923402,115980.0,115970.0,0.036]
[1752192157450,0.22061252,115980.0,115970.0,0.036]
[1752192158901,0.22923402,115980.0,115970.0,0.036]
[1752192159335,0.22988402,115980.0,115970.0,0.036]
[1752192159606,0.22988402,115980.0,115970.0,0.11342232]
[1752192160734,0.22988402,115980.0,115970.0,0.09517232]
[1752192160945,0.41094919,115980.0,115970.0,0.07742232]
[1752192161405,0.22988402,115980.0,115970.0,0.06561893]
[1752192161641,0.22126252,115980.0,115970.0,0.06561893]
[1752192162484,0.22126252,115980.0,115970.0,0.03465]
[1752192163155,0.22126252,115980.0,115970.0,0.11207793]
[1752192163558,0.40232769,115980.0,115970.0,0.11207793]
[1752192163767,0.22126252,115980.0,115970.0,0.11207793]
[1752192164208,0.41094935,115980.0,115970.0,0.10892793]
[1752192164413,0.41094935,115980.0,115970.0,0.07742793]
[1752192164630,0.41094927,115980.0,115970.0,0.07742793]
[1752192164843,0.40232762,115980.0,115970.0,0.07742793]
[1752192165285,0.40232762,115980.0,115970.0,0.10962793]
[1752192165484,0.22126252,115980.0,115970.0,0.11277793]
[1752192165618,0.22988402,115980.0,115970.0,0.11277793]
[1752192167367,0.22126252,115980.0,115970.0,0.11277793]
[1752192168808,0.2298841,115980.0,115970.0,0.11277793]
[1752192169230,0.22126252,115980.0,115970.0,0.11277793]
[1752192169406,0.2298841,115980.0,115970.0,0.11277793]
[1752192169609,0.22126252,115980.0,115970.0,0.11277793]
[1752192170015,0.2298841,115980.0,115970.0,0.11277793]
[1752192170584,0.41094935,115980.0,115970.0,0.11277793]
[1752192170823,0.41094927,115980.0,115970.0,0.11277793]
[1752192172707,0.41094927,115980.0,115970.0,0.09707793]
[1752192173302,0.40232762,115980.0,115970.0,0.11267793]
[1752192173766,0.41094927,115980.0,115970.0,0.11267793]
[1752192174749,0.41957107,115980.0,115970.0,0.11267793]
[1752192174949,0.41094927,115980.0,115970.0,0.11267793]
[1752192175351,0.40232762,115980.0,115970.0,0.11267793]
[1752192175769,0.40232762,115980.0,115970.0,0.03525]
[1752192175972,0.2298841,115980.0,115970.0,0.03525]
[1752192176397,0.22061252,115980.0,115970.0,0.03732]
[1752192177449,0.22923402,115980.0,115970.0,0.03732]
[1752192177851,0.22061252,115980.0,115970.0,0.03732]
[1752192178009,0.2292341,115980.0,115970.0,0.03732]
[1752192178213,0.22923402,115980.0,115970.0,0.03732]
[1752192179356,0.23785567,115980.0,115970.0,0.03732]
[1752192179985,0.41094919,115980.0,115970.0,0.03732]
[1752192180179,0.41957092,115980.0,115970.0,0.03732]
[1752192180610,0.44273424,115980.0,115960.0,0.035985]
[1752192180815,0.44273424,115980.0,115960.0,0.03603483]
[1752192180991,0.00862225,115970.0,115960.0,0.03603483]
[1752192181192,0.99354339,115980.0,115960.0,0.03810483]
[1752192181579,0.99154339,115980.0,115960.0,0.03810483]
[1752192181778,0.98954339,115980.0,115960.0,0.03810483]
[1752192181978,0.99816556,115980.0,115960.0,0.03810483]
[1752192182194,0.1903534,115970.0,115960.0,0.03603483]
[1752192182373,0.27578333,115970.0,115960.0,0.00028483]
[1752192182571,0.3914647,115970.0,115960.0,0.00028483]
[1752192182803,0.40677179,115970.0,115960.0,0.00028483]
[1752192183005,0.97277179,115970.0,115960.0,0.00028483]
[1752192184633,0.97377179,115970.0,115960.0,0.00028483]
[1752192184801,0.97277179,115970.0,115960.0,0.00028483]
[1752192185243,0.97677179,115970.0,115960.0,0.00028483]
[1752192185825,0.89134186,115970.0,115960.0,0.00028483]
[1752192186473,0.89434186,115970.0,115960.0,0.00028483]
[1752192193106,1.16126186,115970.0,115960.0,0.00028483]
[1752192197544,1.16126186,115970.0,115960.0,0.16028483]
[1752192197765,1.13035186,115970.0,115960.0,0.16028483]
[1752192197980,1.13035135,115970.0,115960.0,0.19760483]
[1752192198194,0.57664531,115970.0,115960.0,0.19760483]
[1752192198407,0.57664583,115970.0,115960.0,0.19760483]
[1752192198832,0.35515604,115970.0,115960.0,0.19760483]
[1752192200042,0.35215604,115970.0,115960.0,0.19760483]
[1752192200254,0.35315604,115970.0,115960.0,0.19760483]
[1752192201090,0.35777829,115970.0,115960.0,0.19760483]
[1752192201293,0.34915604,115970.0,115960.0,0.19760483]
[1752192204499,0.35777829,115970.0,115960.0,0.19760483]
[1752192204706,0.34915604,115970.0,115960.0,0.19760483]
[1752192205319,0.55340059,115970.0,115960.0,0.16028483]
[1752192206157,0.54477805,115970.0,115960.0,0.16028483]
[1752192206388,1.11077805,115970.0,115960.0,0.16028483]
[1752192206592,1.12677805,115970.0,115960.0,0.16028483]
[1752192206804,1.11077805,115970.0,115960.0,0.16028483]
[1752192207645,1.10977805,115970.0,115960.0,0.16028483]
[1752192208080,1.11677805,115970.0,115960.0,0.16028483]
[1752192210596,1.10815528,115970.0,115960.0,0.16028483]
[1752192218530,1.10815528,115970.0,115960.0,0.19536483]
[1752192218743,1.13402328,115970.0,115960.0,0.19736483]
[1752192219168,1.12540074,115970.0,115960.0,0.19536483]
[1752192219365,1.11677805,115970.0,115960.0,0.19536483]
[1752192220816,0.78763604,115970.0,115960.0,0.19736483]
[1752192221072,0.23888076,115970.0,115960.0,0.19736483]
[1752192221252,0.23025829,115970.0,115960.0,0.19736483]
[1752192221496,0.22163604,115970.0,115960.0,0.19736483]
[1752192221694,0.23888076,115970.0,115960.0,0.19736483]
[1752192221897,0.22163604,115970.0,115960.0,0.19736483]
[1752192222058,0.23025829,115970.0,115960.0,0.19736483]
[1752192222895,0.09685829,115970.0,115960.0,0.19736483]
[1752192223418,0.23025829,115970.0,115960.0,0.19736483]
[1752192223772,0.08823604,115970.0,115960.0,0.19736483]
[1752192223970,0.22163604,115970.0,115960.0,0.19736483]
[1752192225801,0.2534222,115970.0,115960.0,0.16028483]
[1752192226008,0.44228059,115970.0,115960.0,0.16028483]
[1752192226222,0.99188059,115970.0,115960.0,0.16028483]
[1752192226643,0.99188059,115970.0,115960.0,0.16326483]
[1752192227073,0.98325805,115970.0,115960.0,0.16326483]
[1752192230006,0.99188059,115970.0,115960.0,0.19665483]
[1752192230386,1.0005035,115970.0,115960.0,0.19665483]
[1752192231024,1.0005035,115970.0,115960.0,0.19466483]
[1752192232889,0.99188059,115970.0,115960.0,0.19466483]
[1752192233099,1.00050343,115970.0,115960.0,0.19466483]
[1752192233744,0.94415921,115970.0,115960.0,0.19665483]
[1752192233954,0.94978175,115970.0,115960.0,0.19665483]
[1752192234168,0.39240444,115970.0,115960.0,0.19665483]
[1752192234374,0.39440444,115970.0,115960.0,0.19665483]
[1752192234791,0.38578175,115970.0,115960.0,0.19665483]
[1752192235419,0.39240452,115970.0,115960.0,0.19665483]
[1752192235618,0.39540452,115970.0,115960.0,0.19466483]
[1752192236133,0.97002743,115970.0,115960.0,0.19466483]
[1752192236373,0.96140452,115970.0,115960.0,0.19466483]
[1752192236590,0.97002743,115970.0,115960.0,0.19466483]
[1752192237226,0.96140452,115970.0,115960.0,0.19466483]
[1752192237440,0.96140452,115970.0,115960.0,0.27194313]
[1752192237652,0.96140452,115970.0,115960.0,0.19466483]
[1752192237877,0.96140452,115970.0,115960.0,0.24102983]
[1752192238088,0.97002743,115970.0,115960.0,0.27193983]
[1752192238262,0.97002736,115970.0,115960.0,0.17906483]
[1752192238632,0.97002736,115970.0,115960.0,0.19426483]
[1752192239055,0.97865027,115970.0,115960.0,0.19426483]
[1752192239236,0.97002736,115970.0,115960.0,0.19426483]
[1752192240366,0.96140452,115970.0,115960.0,0.19426483]
[1752192242151,0.97002736,115970.0,115960.0,0.19426483]
[1752192242719,1.14248575,115970.0,115960.0,0.19426483]
[1752192242928,1.12524089,115970.0,115960.0,0.16028483]
[1752192250134,1.11661812,115970.0,115960.0,0.16028483]
[1752192250700,1.11661812,115970.0,115960.0,0.19238483]
[1752192250936,1.11661812,115970.0,115960.0,0.16028483]
[1752192251702,1.10799528,115970.0,115960.0,0.16028483]
[1752192253273,1.10799528,115970.0,115960.0,0.17648483]
[1752192253725,1.10799528,115970.0,115960.0,0.19308483]
[1752192253941,1.10799528,115970.0,115960.0,0.16028483]
[1752192254157,1.12524059,115970.0,115960.0,0.16028483]
[1752192255032,1.1166176,115970.0,115960.0,0.51548483]
[1752192255257,1.13386291,115970.0,115960.0,0.53500483]
[1752192255692,1.13386291,115970.0,115960.0,0.55111269]
[1752192256118,1.13386291,115970.0,115960.0,0.55310269]
[1752192256555,1.13386291,115970.0,115960.0,0.55111269]
[1752192256790,0.85848014,115970.0,115960.0,0.55310269]
[1752192257001,1.00046276,115970.0,115960.0,0.55310269]
[1752192257209,1.00046276,115970.0,115960.0,0.55310959]
[1752192257623,1.00908545,115970.0,115960.0,0.55310959]
[1752192257851,1.01770836,115970.0,115960.0,0.55310959]
[1752192258328,1.00908545,115970.0,115960.0,0.55310959]
[1752192258547,1.01770829,115970.0,115960.0,0.55310959]
[1752192258763,1.00046276,115970.0,115960.0,0.55310959]
[1752192258963,1.0090856,115970.0,115960.0,0.58406974]
[1752192259198,1.0090856,115970.0,115960.0,0.58407028]
[1752192259406,1.0090856,115970.0,115960.0,0.55310959]
[1752192259652,1.0090856,115970.0,115960.0,0.58407278]
[1752192259828,1.00908553,115970.0,115960.0,0.5840713]
[1752192260040,1.00908553,115970.0,115960.0,0.55312121]
[1752192260250,1.00046276,115970.0,115960.0,0.55312121]
[1752192260465,1.0090856,115970.0,115960.0,0.55312121]
[1752192260694,1.00908553,115970.0,115960.0,0.55312121]
[1752192261370,1.00908545,115970.0,115960.0,0.55312121]
[1752192261594,1.00046276,115970.0,115960.0,0.55312121]
[1752192261806,0.9832176,115970.0,115960.0,0.55312121]
[1752192262032,0.99184014,115970.0,115960.0,0.55312121]
[1752192262234,1.00046276,115970.0,115960.0,0.55312121]
[1752192262445,0.99184007,115970.0,115960.0,0.55312121]
[1752192262662,0.80213689,115970.0,115960.0,0.55312121]
[1752192262865,1.00046254,115970.0,115960.0,0.55312121]
[1752192263083,0.99183992,115970.0,115960.0,0.55313005]
[1752192263509,0.81075921,115970.0,115960.0,0.55313005]
[1752192264579,0.80213689,115970.0,115960.0,0.55313005]
[1752192264808,0.81075928,115970.0,115960.0,0.55313005]
[1752192265224,0.81075921,115970.0,115960.0,0.55313005]
[1752192265432,0.65423604,115970.0,115960.0,0.55313005]
[1752192265645,0.57310709,115970.0,115960.0,0.55313005]
[1752192265849,0.56985709,115970.0,115960.0,0.86758689]
[1752192266070,0.56985709,115970.0,115960.0,0.69511363]
[1752192266281,0.56985709,115970.0,115960.0,0.8934572]
[1752192266282,0.00085709,115970.0,115960.0,0.8934572]
[1752192266506,0.26672,115980.0,115970.0,0.0319]
[1752192266722,0.26672,115980.0,115970.0,0.23969921]
[1752192266929,0.26672,115980.0,115970.0,0.23406652]